bitfinex/quotes_ETHUSD_20220119
["timestamp","ask_amount","ask_price","bid_price","bid_amount"]
[1642589599074,3.05246282,3069.8,3069.3,1.53243693]
[1642589599274,0.1303,3069.8,3069.3,1.53243693]
[1642589599578,3.17531697,3069.8,3069.3,1.53243693]
[1642589599774,2.13725396,3069.6,3069.2,0.00397896]
[1642589599979,3.4300043,3069.5,3069.2,0.00397896]
[1642589600174,3.4300043,3069.5,3069.1,0.00454738]
[1642589600474,3.4300043,3069.5,3068.5,0.00795793]
[1642589600663,3.4300043,3069.5,3068.8,1.47383582]
[1642589601060,5.0599043,3069.5,3068.9,0.00568423]
[1642589601264,0.29309,3069.5,3068.9,0.00568423]
[1642589601669,0.1303,3069.9,3068.9,0.00568423]
[1642589601869,0.1303,3070.2,3069.1,0.08041923]
[1642589602067,3.6167,3070.3,3070.0,1.51838148]
[1642589602271,0.1303,3070.4,3070.0,1.51838148]
[1642589602272,0.94478,3070.4,3070.0,1.51838148]
[1642589602868,0.1303,3070.4,3070.0,1.51838148]
[1642589603670,0.81561685,3070.1,3070.0,1.51838148]
[1642589603871,0.81561685,3070.1,3069.4,8.4026]
[1642589603872,0.97840685,3070.1,3069.4,8.4026]
[1642589604070,0.81561685,3070.1,3069.4,0.1302]
[1642589604272,0.81561685,3070.1,3069.5,0.00227369]
[1642589604980,0.81458,3070.0,3069.9,1.19247057]
[1642589605179,1.63019685,3070.1,3069.9,1.19247057]
[1642589605777,1.63019685,3070.1,3069.5,1.92368341]
[1642589606180,1.63019685,3070.1,3069.6,0.00170527]
[1642589607178,1.63019685,3070.1,3070.0,1.31457952]
[1642589607379,0.81561685,3070.1,3070.0,1.31457952]
[1642589608025,2.44485685,3070.1,3069.6,0.00170527]
[1642589608228,1.62931,3070.0,3069.6,0.00170527]
[1642589610135,1.62931,3070.0,3069.7,1.45312849]
[1642589610930,1.62931,3070.0,3069.7,3.56466611]
[1642589611132,0.81561685,3070.1,3069.7,3.56466611]
[1642589611823,0.00113685,3070.1,3069.8,4.10631295]
[1642589612024,0.00113685,3070.1,3069.8,1.49726341]
[1642589612422,0.00113685,3070.1,3069.8,2.73626341]
[1642589612622,0.00113685,3070.1,3069.8,2.6692]
[1642589613023,0.00113685,3070.1,3069.8,1.3692]
[1642589613224,0.00113685,3070.1,3069.8,1.239]
[1642589613723,0.00113685,3070.1,3069.9,0.19604243]
[1642589614322,0.00113685,3070.1,3070.0,0.19604243]
[1642589614727,0.00113685,3070.1,3069.6,0.00170527]
[1642589614728,0.94581685,3070.1,3069.6,0.00170527]
[1642589614925,3.46933905,3070.0,3069.6,0.00170527]
[1642589615123,2.62210345,3069.9,3069.6,0.00170527]
[1642589615327,2.62210345,3069.9,3069.3,0.1302]
[1642589615328,0.16279,3069.7,3069.5,0.00227369]
[1642589615529,0.1303,3069.6,3069.5,0.00227369]
[1642589615735,5.64512,3069.6,3069.5,0.00227369]
[1642589615933,0.94512,3069.6,3069.5,0.00227369]
[1642589617039,27.41041829,3069.5,3068.7,1.2039]
[1642589617237,27.41041829,3069.5,3068.6,4.4791]
[1642589617238,4.89832108,3069.3,3068.6,4.4791]
[1642589617435,4.89832108,3069.3,3068.8,0.00397897]
[1642589617436,5.86773929,3069.2,3068.8,0.00397897]
[1642589617637,7.2020798,3069.2,3068.8,0.00397897]
[1642589617839,7.2020798,3069.2,3068.0,0.00852635]
[1642589618039,7.2020798,3069.2,3068.5,1.24675829]
[1642589618040,7.0392898,3069.2,3068.5,1.24675829]
[1642589618236,0.81496,3069.1,3068.6,0.19203457]
[1642589618436,3.02253388,3069.0,3068.6,0.19715038]
[1642589618638,0.1303,3068.9,3068.7,0.00454739]
[1642589618836,0.29309,3068.9,3068.7,0.00454739]
[1642589619036,2.95246261,3068.8,3068.2,0.00738951]
[1642589619281,3.24440317,3068.7,3068.3,0.19244071]
[1642589619577,3.24440317,3068.7,3068.4,0.00625266]
[1642589619578,1.79292,3068.6,3068.4,0.00625266]
[1642589619778,0.1303,3068.5,3068.4,0.00625266]
[1642589619980,0.47,3068.6,3068.4,0.19858122]
[1642589620280,0.94528,3068.8,3068.5,0.19798524]
[1642589620483,5.80179,3069.0,3068.5,0.00568424]
[1642589620484,0.1303,3068.9,3068.5,0.00568424]
[1642589620680,0.1303,3068.9,3068.7,2.28378143]
[1642589620881,5.80179,3069.0,3068.7,2.28378143]
[1642589620882,5.2993,3069.0,3068.7,2.28378143]
[1642589621082,0.6003,3069.4,3068.8,0.2377675]
[1642589621279,0.1303,3069.6,3068.8,0.19205084]
[1642589621483,5.169,3069.7,3068.9,1.3831888]
[1642589621684,5.169,3069.7,3069.0,0.19205084]
[1642589621882,5.169,3069.7,3069.6,1.21932118]
[1642589622281,5.17013685,3069.7,3069.6,1.21932118]
[1642589622923,5.17013685,3069.7,3069.1,0.00227369]
[1642589623326,0.16279,3069.6,3069.0,0.00284212]
[1642589623525,1.65272171,3069.3,3069.1,0.00227369]
[1642589623931,1.65272171,3069.3,3068.7,1.35858391]
[1642589624130,1.65272171,3069.3,3068.7,1.35403652]
[1642589624131,3.28254741,3069.3,3068.7,1.35403652]
[1642589624333,1.62985,3069.2,3068.7,1.35403652]
[1642589624532,0.81494,3069.1,3068.7,1.35403652]
[1642589625532,2.44483,3069.1,3068.7,1.35403652]
[1642589625736,0.81493,3068.9,3068.7,1.35403652]
[1642589625935,0.81493,3068.9,3068.6,0.00511581]
[1642589626334,0.81493,3068.9,3068.3,0.00682108]
[1642589626536,0.81493,3068.9,3068.4,0.13863793]
[1642589626982,0.81493,3068.9,3068.6,1.17095052]
[1642589627379,0.81493,3068.9,3068.7,0.00454739]
[1642589627781,0.81493,3068.9,3068.3,0.00682108]
[1642589627979,1.6299067,3068.8,3068.3,0.00682108]
[1642589628183,4.25148803,3068.8,3068.3,0.00682108]
[1642589628386,3.43652803,3068.8,3068.4,0.13863787]
[1642589628582,3.43652803,3068.8,3068.3,0.00682108]
[1642589629783,1.62999,3068.6,3068.3,0.00682108]
[1642589630184,0.81498,3068.6,3068.3,0.00682108]
[1642589630428,0.1303,3068.9,3068.3,0.00682108]
[1642589630623,4.09879,3069.2,3068.3,0.00682108]
[1642589630624,0.1303,3069.1,3068.3,0.00682108]
[1642589630827,0.1303,3069.4,3068.4,0.1303]
[1642589631032,0.1303,3069.6,3068.4,1.1303]
[1642589631224,0.1303,3069.6,3069.4,3.19123291]
[1642589632027,0.16279,3069.5,3068.7,1.2049]
[1642589632230,1.75969,3069.6,3068.7,1.2049]
[1642589632429,0.8147883,3069.4,3068.8,0.13862375]
[1642589632629,0.1303,3069.3,3068.8,0.13862375]
[1642589632829,0.1303,3069.5,3068.9,0.00341054]
[1642589633334,2.4444636,3069.3,3068.9,0.00341054]
[1642589633535,6.4603391,3069.2,3068.9,0.00341054]
[1642589633747,0.16279,3069.0,3068.9,0.00341054]
[1642589633932,0.16279,3069.0,3068.6,0.14375276]
[1642589633933,0.1303,3069.0,3068.6,0.14375276]
[1642589634178,0.1303,3069.3,3068.7,0.13863695]
[1642589634379,0.1303,3069.4,3068.7,0.14318434]
[1642589634578,0.1303,3069.4,3068.8,0.13863695]
[1642589634579,0.81471,3069.3,3068.8,0.13863695]
[1642589634981,0.1303,3069.5,3068.9,2.98248374]
[1642589635184,6.79947685,3069.7,3069.0,0.13863695]
[1642589635185,0.1303,3069.6,3069.0,0.13863695]
[1642589635386,6.79947685,3069.7,3069.0,3.15222153]
[1642589635387,0.00113685,3069.7,3069.0,3.15222153]
[1642589635583,0.00113685,3069.7,3069.2,0.05839879]
[1642589635782,0.00113685,3069.7,3069.3,0.13863695]
[1642589635982,0.00113685,3069.7,3069.3,0.2700738]
[1642589636186,0.00113685,3069.7,3069.4,3.32771038]
[1642589636384,0.00113685,3069.7,3069.5,0.13863695]
[1642589637484,0.00113685,3069.7,3069.4,3.32771038]
[1642589640231,0.00113685,3069.7,3069.4,1.47701801]
[1642589641031,0.81584085,3069.7,3069.4,1.47701801]
[1642589641333,0.81584085,3069.7,3069.3,0.00113685]
[1642589641530,1.63049085,3069.7,3069.3,0.00113685]
[1642589641786,1.63049085,3069.7,3069.2,0.00170527]
[1642589642483,2.44524085,3069.7,3069.2,0.00170527]
[1642589642684,0.81473,3069.6,3069.1,1.4432888]
[1642589642883,3.8618807,3069.6,3069.2,0.00170527]
[1642589643087,1.84554126,3069.3,3069.2,0.00170527]
[1642589643284,6.91722867,3069.3,3069.1,0.00227369]
[1642589643483,3.35715749,3069.2,3068.9,0.00341054]
[1642589643684,3.35715749,3069.2,3068.5,0.00568424]
[1642589643685,0.81488,3069.1,3068.5,0.00568424]
[1642589643888,2.44464,3069.1,3068.5,0.00568424]
[1642589644085,3.10086216,3069.0,3068.6,1.34039048]
[1642589644286,0.1303,3068.9,3068.6,1.34039048]
[1642589644487,0.1303,3068.9,3068.7,0.00454739]
[1642589644683,0.1303,3069.0,3068.7,0.00454739]
[1642589644884,0.16279,3069.1,3068.2,0.00738951]
[1642589645086,3.3132777,3069.2,3068.2,1.00738951]
[1642589645291,4.1281407,3069.2,3068.2,1.00738951]
[1642589645533,0.16279,3069.1,3068.3,1.12002562]
[1642589645733,0.1303,3069.0,3068.3,1.12002562]
[1642589645937,3.15611693,3069.0,3068.4,0.00625266]
[1642589646543,0.81489,3068.9,3068.4,2.25053494]
[1642589646935,0.81489,3068.9,3068.5,0.00568424]
[1642589647938,3.01603333,3068.8,3068.5,0.00568424]
[1642589648138,3.83097333,3068.8,3068.5,0.00568424]
[1642589648336,3.83097333,3068.8,3068.4,0.00625266]
[1642589649202,19.87758025,3068.5,3067.8,0.1303]
[1642589649403,7.59290341,3068.4,3067.8,0.1303]
[1642589649597,1.10833,3068.4,3067.9,0.00284212]
[1642589649800,5.03773,3068.4,3067.9,0.00284212]
[1642589650196,2.54639706,3068.2,3067.9,0.00284212]
[1642589650398,6.01279,3068.0,3067.9,0.00284212]
[1642589650601,6.14309,3068.0,3067.9,0.00284212]
[1642589651000,6.14309,3068.0,3066.8,0.00909477]
[1642589651198,0.1303,3067.9,3066.8,0.00909477]
[1642589651398,0.97796,3067.8,3067.4,1.68764446]
[1642589651601,0.1303,3067.7,3067.4,1.68764446]
[1642589651802,0.1303,3067.7,3067.5,0.00511581]
[1642589652113,0.16279,3067.6,3067.5,0.00511581]
[1642589652299,0.16279,3067.6,3067.5,2.50511581]
[1642589652800,0.1303,3067.7,3067.5,2.50511581]
[1642589653028,0.1303,3068.3,3067.5,2.50511581]
[1642589653327,0.1303,3068.3,3067.6,0.00454739]
[1642589653527,0.16279,3068.4,3067.6,0.00454739]
[1642589653728,0.1303,3068.6,3068.2,2.33649085]
[1642589653932,0.1303,3068.6,3068.2,3.77757628]
[1642589654731,0.8150284,3068.5,3068.2,3.77757628]
[1642589655133,2.4451084,3068.5,3068.2,3.77757628]
[1642589655333,3.2601484,3068.5,3068.2,1.44108543]
[1642589656033,2.44512,3068.5,3068.2,1.44108543]
[1642589656236,2.44512,3068.5,3067.6,4.87884739]
[1642589656437,0.1303,3068.4,3067.6,1.13664739]
[1642589656681,0.8151,3068.2,3067.7,0.00397896]
[1642589657585,0.8151,3068.2,3067.8,1.22031353]
[1642589657787,0.8151,3068.2,3067.9,2.16688667]
[1642589657986,0.9454,3068.2,3067.9,2.16688667]
[1642589658185,0.9454,3068.2,3068.0,0.00227369]
[1642589658685,0.81512,3068.1,3068.0,0.00227369]
[1642589658985,5.03025,3068.1,3068.0,0.00227369]
[1642589659386,5.19304,3068.1,3068.0,0.00227369]
[1642589660442,5.32334,3068.1,3068.0,0.00227369]
[1642589660645,1.92334,3068.1,3068.0,0.00227369]
[1642589661244,4.27334,3068.1,3068.0,0.00227369]
[1642589661846,1.6305584,3067.9,3067.2,0.00682108]
[1642589662056,0.01237584,3067.6,3067.2,0.00682108]
[1642589662256,19.05,3067.4,3067.2,0.00682108]
[1642589662449,6.6003,3067.3,3067.1,0.0073895]
[1642589662648,0.47,3067.2,3066.8,0.00909477]
[1642589663047,0.8154,3067.1,3066.8,0.00909477]
[1642589663252,0.47,3067.5,3066.8,0.00909477]
[1642589663448,0.1303,3068.2,3067.8,1.23154792]
[1642589663650,2.77413554,3068.1,3067.8,1.23154792]
[1642589663852,1.18980527,3068.7,3067.8,1.23154792]
[1642589663853,0.29309,3068.6,3067.8,1.23154792]
[1642589664056,0.16279,3068.6,3067.8,1.23154792]
[1642589664286,0.00113685,3068.6,3067.9,2.30755263]
[1642589664485,0.00113685,3068.6,3068.0,0.1303]
[1642589664685,0.00113685,3068.6,3068.5,1.18862501]
[1642589664890,0.00113685,3068.6,3068.5,3.46663217]
[1642589665085,0.00113685,3068.6,3068.5,2.27800716]
[1642589667291,0.00113685,3068.6,3068.5,7.40830716]
[1642589667497,0.00113685,3068.6,3068.5,8.40830716]
[1642589667692,0.00113685,3068.6,3068.5,9.69259716]
[1642589667933,0.00113685,3068.6,3068.5,10.00849716]
[1642589668131,0.00113685,3068.6,3068.5,4.19390716]
[1642589668335,0.00113685,3068.6,3068.5,4.32420716]
[1642589668535,0.00113685,3068.6,3068.5,3.72420716]
[1642589668934,0.00113685,3068.6,3068.5,3.40830716]
[1642589669540,0.00113685,3068.6,3068.5,0.1303]
[1642589669741,0.29422685,3068.6,3068.5,0.1303]
[1642589670141,0.16392685,3068.6,3068.5,0.1303]
[1642589671041,0.00113685,3068.6,3068.5,3.54053543]
[1642589671240,0.00113685,3068.6,3068.5,6.89053543]
[1642589671439,0.00113685,3068.6,3068.5,7.76023543]
[1642589671693,0.00113685,3068.6,3068.5,7.89053543]
[1642589671884,0.00113685,3068.6,3068.5,8.19053543]
[1642589672285,0.00113685,3068.6,3068.5,8.49053543]
[1642589672882,0.00113685,3068.6,3068.5,8.31293543]
[1642589673084,0.00113685,3068.6,3068.5,13.54431933]
[1642589673284,0.00113685,3068.6,3068.5,15.18461933]
[1642589673487,0.00113685,3068.6,3068.5,11.58381933]
[1642589673688,0.00113685,3068.6,3068.5,9.81963543]
[1642589673886,0.00113685,3068.6,3068.5,8.19053543]
[1642589674286,0.00113685,3068.6,3068.5,3.54053543]
[1642589674887,0.00113685,3068.6,3068.5,0.1303]
[1642589674888,0.13143685,3068.6,3068.5,0.1303]
[1642589675087,0.00113685,3068.6,3068.5,0.1303]
[1642589677944,0.00113685,3068.6,3068.1,0.00170527]
[1642589677945,6.95,3068.5,3068.1,0.00170527]
[1642589678142,0.01222006,3068.3,3068.1,0.00170527]
[1642589678339,6.4303,3068.2,3067.6,0.00454739]
[1642589678540,3.5546006,3068.1,3067.2,0.00682108]
[1642589678742,1.87404417,3068.0,3067.2,0.00682108]
[1642589678941,1.87404417,3068.0,3067.2,1.13675066]
[1642589678942,1.63049,3067.8,3067.2,1.13675066]
[1642589679183,2.91033132,3067.7,3067.2,1.13675066]
[1642589679385,0.1303,3067.7,3067.3,0.00625266]
[1642589679783,1.6305187,3067.7,3067.3,0.00625266]
[1642589679990,0.59309,3067.6,3067.3,0.00625266]
[1642589680187,0.16279,3067.4,3066.6,0.1303]
[1642589680390,0.16279,3067.4,3066.7,0.00341054]
[1642589680391,0.6003,3067.3,3066.7,0.00341054]
[1642589680791,0.6003,3067.3,3067.2,2.22495401]
[1642589680990,0.6003,3067.3,3067.2,3.37291398]
[1642589681493,0.00113685,3067.5,3067.2,3.37291398]
[1642589684547,0.1303,3067.4,3067.2,2.22495401]
[1642589684845,2.93730425,3067.3,3066.2,0.1303]
[1642589685046,3.69986016,3067.2,3066.2,0.1303]
[1642589685346,0.1303,3067.2,3066.3,0.00568423]
[1642589685649,0.81542,3067.1,3066.3,0.00568423]
[1642589685846,3.69503228,3067.0,3066.3,0.00568423]
[1642589686047,0.81554,3066.9,3066.3,0.00568423]
[1642589686298,3.97384422,3066.8,3066.2,0.00625266]
[1642589686683,0.6003,3066.8,3066.2,0.00625266]
[1642589686887,1.63128,3066.6,3066.1,0.00682108]
[1642589687092,1.63128,3066.6,3065.4,2.02049972]
[1642589687093,5.1,3066.2,3065.7,0.00909477]
[1642589687290,0.76309,3066.1,3065.6,0.0096632]
[1642589687492,0.76309,3066.1,3065.5,0.01023162]
[1642589687889,1.63172,3066.0,3065.8,1.4192643]
[1642589688093,0.1303,3065.9,3065.8,1.4192643]
[1642589688297,0.13819997,3066.5,3065.9,0.00795793]
[1642589688298,0.6003,3066.3,3065.9,0.00795793]
[1642589688495,0.1303,3066.4,3066.0,1.67426955]
[1642589688691,0.26849997,3066.5,3066.0,1.67426955]
[1642589688892,0.16279,3066.3,3066.1,0.00682108]
[1642589689294,0.97833,3066.3,3066.1,0.00682108]
[1642589689592,0.97833,3066.3,3065.9,0.00795793]
[1642589689791,0.81554,3066.3,3065.9,0.00795793]
[1642589689994,3.8227,3066.8,3065.9,0.00795793]
[1642589690194,0.1303,3067.0,3065.9,0.00795793]
[1642589690451,0.36199997,3067.1,3066.1,0.05020419]
[1642589690648,0.36199997,3067.1,3066.0,1.68766381]
[1642589690649,0.1303,3067.0,3066.0,1.68766381]
[1642589690853,0.36199997,3067.1,3066.9,1.24268352]
[1642589691149,0.36199997,3067.1,3067.0,0.00170527]
[1642589691748,0.52478997,3067.1,3067.0,0.00170527]
[1642589691951,2.87478997,3067.1,3067.0,0.00170527]
[1642589692150,3.00508997,3067.1,3067.0,0.00170527]
[1642589692353,3.00508997,3067.1,3066.0,1.68766381]
[1642589692354,0.81556,3066.9,3066.2,0.00625266]
[1642589692556,3.06833908,3066.8,3066.2,0.00625266]
[1642589692753,0.29309,3066.8,3066.1,0.00682108]
[1642589692953,0.29309,3066.8,3066.4,1.09379519]
[1642589692954,0.8155541,3066.7,3066.4,1.09379519]
[1642589693155,0.1303,3066.6,3066.4,1.09379519]
[1642589693357,0.1303,3066.6,3066.5,0.00454738]
[1642589693656,1.10865,3066.6,3065.9,2.30636224]
[1642589694052,1.10865,3066.6,3066.0,0.0073895]
[1642589694053,3.2623477,3066.5,3066.0,0.0073895]
[1642589694291,0.1303,3066.4,3066.0,0.0073895]
[1642589694692,0.81557,3066.3,3066.1,1.30233066]
[1642589695091,0.81557,3066.3,3066.2,0.00625266]
[1642589695292,0.97836,3066.3,3066.2,0.00625266]
[1642589696895,3.32836,3066.3,3066.2,0.00625266]
[1642589697091,3.32836,3066.3,3065.7,0.00909477]
[1642589697291,1.6313292,3066.1,3065.6,0.0096632]
[1642589697792,1.6313292,3066.1,3065.6,3.30493394]
[1642589698235,1.6313292,3066.1,3065.7,0.00909477]
[1642589698836,0.97836,3066.3,3065.7,0.00909477]
[1642589700042,0.1303,3066.2,3065.7,0.00909477]
[1642589700438,0.97849,3066.1,3065.7,0.00909477]
[1642589700637,0.1303,3066.0,3065.7,0.00909477]
[1642589700837,0.81575,3065.9,3065.1,0.01250531]
[1642589701239,0.81575,3065.9,3064.9,0.09280531]
[1642589701442,0.00397896,3065.8,3064.9,0.09280531]
[1642589701708,0.00397896,3065.8,3065.7,1.90588367]
[1642589701901,0.1303,3066.2,3065.7,1.90588367]
[1642589702102,0.00397896,3065.8,3065.7,1.90588367]
[1642589702901,0.00397896,3065.8,3065.7,4.35588367]
[1642589703302,0.00397896,3065.8,3065.7,1.90588367]
[1642589703502,0.0018067,3065.8,3065.7,1.90588367]
[1642589704702,0.0018067,3065.8,3065.7,7.05588367]
[1642589704904,3.9271,3066.7,3065.9,0.11841282]
[1642589705104,0.13819997,3067.1,3065.9,1.11841282]
[1642589705105,0.1303,3066.9,3065.9,1.11841282]
[1642589705304,0.13819997,3067.1,3065.9,1.11841282]
[1642589705305,0.00227369,3066.2,3065.9,1.11841282]
[1642589705540,0.00227369,3066.2,3065.8,8.1315]
[1642589705745,0.00170527,3066.1,3065.8,8.1315]
[1642589706143,0.1303,3066.9,3065.8,8.1315]
[1642589706144,0.00113685,3066.0,3065.8,8.1315]
[1642589706544,0.97828,3066.6,3065.8,1.1815]
[1642589706745,0.29309,3066.5,3066.1,1.11797058]
[1642589706944,0.16279,3066.4,3066.1,1.11797058]
[1642589707143,1.6312211,3066.3,3065.7,1.90588367]
[1642589707347,1.76436322,3066.3,3065.7,1.90588367]
[1642589707543,0.81561,3066.2,3065.7,1.90588367]
[1642589708046,0.00170527,3066.1,3065.7,1.90588367]
[1642589708244,0.00170527,3066.1,3065.8,1.39154054]
[1642589708446,0.00113685,3066.0,3065.8,1.39154054]
[1642589708648,0.00113685,3066.0,3065.7,1.90588367]
[1642589708851,3.26446791,3066.1,3065.0,1.1303]
[1642589709046,0.81574,3065.8,3065.0,0.1303]
[1642589709291,0.81574,3065.8,3065.1,0.00397896]
[1642589709691,0.81574,3065.8,3065.5,1.50193632]
[1642589709893,0.00113685,3066.0,3065.5,1.50193632]
[1642589710091,0.00113685,3066.0,3065.6,0.00113685]
[1642589710992,0.00113685,3066.0,3065.7,1.77408295]
[1642589711194,0.00113685,3066.0,3065.8,0.1303]
[1642589711399,3.685e-05,3066.0,3065.8,0.23798059]
[1642589711598,3.685e-05,3066.0,3065.9,7.76527]
[1642589711795,3.685e-05,3066.0,3065.9,8.49557]
[1642589711996,3.685e-05,3066.0,3065.9,9.49557]
[1642589713841,3.685e-05,3066.0,3065.9,9.19557]
[1642589714051,3.685e-05,3066.0,3065.9,8.3803]
[1642589714244,3.685e-05,3066.0,3065.9,9.19553]
[1642589714847,3.685e-05,3066.0,3065.9,9.49553]
[1642589715646,3.685e-05,3066.0,3065.9,9.61953]
[1642589715847,0.1303,3067.2,3066.0,6.95076315]
[1642589716048,0.1303,3067.7,3066.3,1.6302]
[1642589716247,0.1748879,3068.1,3066.4,1.2966]
[1642589716248,0.00625266,3067.1,3066.4,1.2966]
[1642589716449,0.00625266,3067.1,3066.5,1.15388003]
[1642589716705,0.1303,3068.0,3066.5,1.15388003]
[1642589716706,0.00568423,3067.0,3066.6,0.1303]
[1642589717094,0.1303,3068.0,3066.7,0.94071]
[1642589717095,0.00511581,3066.9,3066.7,0.94071]
[1642589717293,0.00511581,3066.9,3066.8,7.0803]
[1642589717494,0.1303,3068.0,3066.9,0.05008849]
[1642589717693,0.1303,3068.0,3067.6,1.35097205]
[1642589717896,0.01080004,3067.9,3067.6,1.35097205]
[1642589718292,0.01023162,3067.8,3067.6,1.35097205]
[1642589718695,0.0096632,3067.7,3067.6,1.35097205]
[1642589719595,0.0096632,3067.7,3067.6,8.90097205]
[1642589719995,0.0096632,3067.7,3067.6,9.90097205]
[1642589723242,0.0096632,3067.7,3067.6,10.71587205]
[1642589723843,0.0096632,3067.7,3067.6,9.90097205]
[1642589724894,0.0096632,3067.7,3067.6,2.65097205]
[1642589725493,0.0096632,3067.7,3067.6,1.65097205]
[1642589725692,0.0096632,3067.7,3067.6,2.65097205]
[1642589726094,0.0096632,3067.7,3067.6,1.65097205]
[1642589726293,0.0096632,3067.7,3067.6,2.65097205]
[1642589726493,0.0096632,3067.7,3067.6,1.35097205]
[1642589726694,0.0096632,3067.7,3067.4,1.1842]
[1642589727094,0.00909477,3067.6,3067.4,1.1842]
[1642589727295,0.82434647,3067.6,3066.9,7.2148]
[1642589727495,0.00852635,3067.5,3066.9,7.2148]
[1642589727693,0.00852635,3067.5,3067.2,1.31336513]
[1642589727937,0.00795793,3067.4,3067.2,1.31336513]
[1642589728344,0.0073895,3067.3,3067.2,1.31336513]
[1642589728544,0.0073895,3067.3,3067.2,3.81336513]
[1642589729145,0.0073895,3067.3,3067.2,5.11336513]
[1642589729346,0.0073895,3067.3,3067.2,5.41336513]
[1642589729553,0.0073895,3067.3,3067.2,9.86336513]
[1642589729746,0.0876895,3067.7,3067.3,6.95]
[1642589729944,0.0876895,3067.7,3067.4,0.81495]
[1642589730245,0.0876895,3067.7,3067.4,2.11495]
[1642589730246,0.00170527,3067.6,3067.4,2.11495]
[1642589730645,0.00113685,3067.5,3067.4,1.3]
[1642589731446,0.00113685,3067.5,3067.4,7.35]
[1642589732492,0.00113685,3067.5,3067.4,6.05]
[1642589733695,0.00113685,3067.5,3067.4,7.35]
[1642589733896,0.00113685,3067.5,3067.4,7.05]
[1642589734701,0.00113685,3067.5,3067.4,7.35]
[1642589736562,0.00113685,3067.5,3067.4,10.76278373]
[1642589736764,3.685e-05,3067.5,3067.4,10.92544373]
[1642589736965,3.685e-05,3067.5,3067.4,11.8011498]
[1642589737269,0.8253,3068.8,3067.7,0.81468]
[1642589737461,0.8253,3068.8,3067.8,5.28478859]
[1642589737662,0.00682108,3068.7,3068.0,0.81471]
[1642589737861,0.00682108,3068.7,3068.1,0.3]
[1642589738064,0.00625266,3068.6,3068.2,5.01136029]
[1642589738465,0.00568423,3068.5,3068.3,1.0]
[1642589738666,0.00568423,3068.5,3068.3,1.3]
[1642589738965,0.8253,3068.8,3068.3,1.3]
[1642589738966,0.00511581,3068.4,3068.3,1.3]
[1642589739395,0.00511581,3068.4,3068.3,8.25]
[1642589739802,0.00511581,3068.4,3068.3,9.0647]
[1642589740399,0.00511581,3068.4,3068.3,8.25]
[1642589742203,0.00511581,3068.4,3068.3,1.3]
[1642589742409,0.00511581,3068.4,3068.2,1.25583542]
[1642589742804,0.00454739,3068.3,3068.2,1.25583542]
[1642589743267,0.00454739,3068.3,3067.7,1.1442]
[1642589743468,2.45813225,3068.2,3067.5,0.0008]
[1642589743666,1.79012605,3068.2,3067.5,0.0008]
[1642589743865,0.00341054,3068.1,3067.5,0.0008]
[1642589744064,0.1303,3068.0,3067.5,0.0008]
[1642589744265,0.13314212,3068.0,3067.5,0.0008]
[1642589744463,0.00227369,3067.9,3067.6,1.67043784]
[1642589744664,0.1303,3067.8,3067.6,1.67043784]
[1642589744864,0.1303,3067.8,3067.6,1.32790765]
[1642589744865,0.13200527,3067.8,3067.6,1.32790765]
[1642589745070,0.00113685,3067.7,3067.6,1.32790765]
[1642589746167,0.00113685,3067.7,3067.5,0.0008]
[1642589746566,0.81630635,3067.7,3067.5,0.0008]
[1642589746996,3.09309,3067.6,3067.5,0.0008]
[1642589747201,3.90834,3067.6,3067.5,0.0008]
[1642589747798,6.68314974,3067.6,3067.5,0.0008]
[1642589749196,3.90834,3067.6,3067.5,0.0008]
[1642589749796,6.68306562,3067.6,3067.5,0.0008]
[1642589749999,3.88306562,3067.6,3067.5,0.0008]
[1642589750205,0.29309,3067.6,3067.5,0.0008]
[1642589750449,0.1303,3067.6,3067.5,0.0008]
[1642589751051,0.13143685,3067.7,3067.5,1.16650784]
[1642589752054,0.00113685,3067.7,3067.5,1.16650784]
[1642589752278,0.00113685,3067.7,3067.5,0.0008]
[1642589752459,1.63162035,3067.7,3067.5,0.0008]
[1642589752655,2.44687035,3067.7,3067.5,0.0008]
[1642589753857,2.77459864,3067.6,3067.5,0.0008]
[1642589754320,2.93738864,3067.6,3067.5,0.0008]
[1642589754520,3.06768864,3067.6,3067.5,0.0008]
[1642589754920,0.81541,3067.3,3066.1,0.1303]
[1642589755123,1.63081,3067.4,3066.1,0.1303]
[1642589755124,3.6825,3067.4,3066.1,2.93640524]
[1642589755323,3.6825,3067.4,3067.0,1.81541489]
[1642589755624,3.6825,3067.4,3067.1,0.00227369]
[1642589755820,0.00113685,3067.7,3067.1,0.00227369]
[1642589756019,2.77562544,3067.7,3067.1,0.00227369]
[1642589756219,0.8151469,3067.6,3067.2,1.47801192]
[1642589756420,2.77448859,3067.5,3067.2,1.47801192]
[1642589756620,2.77448859,3067.5,3067.3,0.00113685]
[1642589760353,0.1303,3067.6,3067.3,0.00113685]
[1642589760559,0.00113685,3067.7,3067.4,0.81502]
[1642589761556,0.00113685,3067.7,3067.3,0.00113685]
[1642589762604,2.77540577,3067.7,3067.3,0.00113685]
[1642589763411,0.00113685,3067.7,3067.3,0.00113685]
[1642589763806,2.77557355,3067.7,3067.3,0.00113685]
[1642589764008,2.7744367,3067.6,3067.3,0.00113685]
[1642589764212,0.9779722,3067.6,3067.3,0.00113685]
[1642589764419,0.9779722,3067.6,3066.9,0.1303]
[1642589764420,3.1,3067.3,3066.9,0.1303]
[1642589764614,2.77462968,3067.2,3066.0,3.72056315]
[1642589764812,1.6308281,3067.0,3066.0,3.72056315]
[1642589765012,2.90492968,3066.9,3066.0,3.72056315]
[1642589765212,0.1303,3066.9,3066.0,0.00076315]
[1642589765662,0.9457141,3066.9,3066.0,0.00076315]
[1642589765862,0.1303,3066.9,3066.0,0.00076315]
[1642589766068,0.1303,3066.9,3066.5,1.23910545]
[1642589766462,0.81541,3066.8,3066.6,0.00397896]
[1642589766662,0.1303,3066.7,3066.6,0.00397896]
[1642589766862,1.6308347,3066.8,3066.6,0.00397896]
[1642589767263,2.4462947,3066.8,3066.6,0.00397896]
[1642589767469,6.91848182,3066.7,3066.6,0.00397896]
[1642589767666,0.81556,3066.6,3066.1,0.00682108]
[1642589767868,3.75386647,3066.5,3066.1,0.00682108]
[1642589768067,2.90582529,3066.4,3066.1,0.00682108]
[1642589768267,0.1303,3066.4,3066.1,0.00682108]
[1642589768467,2.70804253,3066.4,3066.1,0.00682108]
[1642589768866,4.33936253,3066.4,3066.1,0.00682108]
[1642589769069,4.40702249,3066.3,3066.1,0.00682108]
[1642589769302,0.29309,3066.2,3066.1,0.00682108]
[1642589770106,0.1303,3066.6,3066.1,6.15682108]
[1642589770305,0.81539,3066.8,3066.2,0.07154651]